[Event "Snabb-SM för veteraner, 50+ 2019"]
[Site "Schackcentrum, Vegagatan 20, Gothenburg, Sweden"]
[Date "2019.10.05"]
[Round "1.1"]
[White "Andreasson, Ingvar"]
[Black "Bergre, Joachim"]
[Result "1-0"]
[TimeControl "15 minutes + 10 seconds per move from move one"]
[WhiteFideId "1700294"]
[BlackFideId "1704893"]
[WhiteElo "2413"]
[BlackElo "2035"]

1. b3 {[%clk 00:15:08]} {[%emt 00:00:11]} e5 {[%clk 00:14:59]} {[%emt
00:00:22]} 2. Bb2 {[%clk 00:15:10]} {[%emt 00:00:08]} d6 {[%clk 00:15:07]}
{[%emt 00:00:02]} 3. e3 {[%clk 00:14:33]} {[%emt 00:00:47]} Nc6 {[%clk
00:14:34]} {[%emt 00:00:43]} 4. g3 {[%clk 00:14:17]} {[%emt 00:00:26]} g6
{[%clk 00:14:04]} {[%emt 00:00:40]} 5. Bg2 {[%clk 00:14:17]} {[%emt 00:00:10]}
Bg7 {[%clk 00:14:12]} {[%emt 00:00:02]} 6. c4 {[%clk 00:14:13]} {[%emt
00:00:14]} Nf6 {[%clk 00:12:55]} {[%emt 00:01:27]} 7. Ne2 {[%clk 00:13:45]}
{[%emt 00:00:38]} O-O {[%clk 00:12:41]} {[%emt 00:00:24]} 8. O-O {[%clk
00:13:32]} {[%emt 00:00:23]} d5 {[%clk 00:10:41]} {[%emt 00:02:10]} 9. cxd5
{[%clk 00:13:26]} {[%emt 00:00:17]} Nxd5 {[%clk 00:10:48]} {[%emt 00:00:02]} 10.
a3 {[%clk 00:13:33]} {[%emt 00:00:04]} Be6 {[%clk 00:10:25]} {[%emt 00:00:32]}
11. d3 {[%clk 00:07:17]} {[%emt 00:06:24]} Qd7 {[%clk 00:08:51]} {[%emt
00:01:47]} 12. Nd2 {[%clk 00:07:25]} Rad8 {[%clk 00:08:40]} {[%emt 00:00:21]}
13. Ne4 {[%clk 00:07:30]} {[%emt 00:00:05]} Qe7 {[%clk 00:06:47]} {[%emt
00:02:03]} 14. Rc1 {[%clk 00:07:20]} {[%emt 00:00:20]} f5 {[%clk 00:06:20]}
{[%emt 00:00:37]} 15. Nc5 {[%clk 00:07:27]} {[%emt 00:00:03]} Bc8 {[%clk
00:06:28]} {[%emt 00:00:02]} 16. b4 {[%clk 00:07:32]} {[%emt 00:00:05]} a6
{[%clk 00:05:48]} {[%emt 00:00:50]} 17. Qb3 {[%clk 00:06:36]} {[%emt 00:01:06]}
Qf7 {[%clk 00:05:52]} {[%emt 00:00:05]} 18. Nxa6 {[%clk 00:06:03]} {[%emt
00:00:43]} bxa6 {[%clk 00:05:11]} {[%emt 00:00:51]} 19. Rxc6 {[%clk 00:06:10]}
{[%emt 00:00:03]} Bb7 {[%clk 00:05:20]} {[%emt 00:00:02]} 20. Rc5 {[%clk
00:06:09]} {[%emt 00:00:10]} c6 {[%clk 00:04:23]} {[%emt 00:01:08]} 21. e4
{[%clk 00:06:07]} {[%emt 00:00:12]} fxe4 {[%clk 00:04:11]} {[%emt 00:00:22]} 22.
dxe4 {[%clk 00:06:12]} {[%emt 00:00:04]} Nb6 {[%clk 00:03:48]} {[%emt
00:00:32]} 23. Qc2 {[%clk 00:06:13]} {[%emt 00:00:10]} Nd7 {[%clk 00:03:37]}
{[%emt 00:00:22]} 24. Rc4 {[%clk 00:06:13]} {[%emt 00:00:10]} a5 {[%clk
00:03:40]} {[%emt 00:00:06]} 25. bxa5 {[%clk 00:06:14]} {[%emt 00:00:09]} Ra8
{[%clk 00:03:43]} {[%emt 00:00:07]} 26. Rb4 {[%clk 00:06:14]} {[%emt 00:00:11]}
Ba6 {[%clk 00:03:14]} {[%emt 00:00:39]} 27. Bc1 {[%clk 00:05:47]} {[%emt
00:00:36]} c5 {[%clk 00:03:22]} {[%emt 00:00:03]} 28. Rb1 {[%clk 00:05:48]}
{[%emt 00:00:08]} Rfb8 {[%clk 00:03:24]} {[%emt 00:00:08]} 29. Be3 {[%clk
00:05:46]} {[%emt 00:00:12]} Qc4 {[%clk 00:03:26]} {[%emt 00:00:08]} 30. Nc3
{[%clk 00:05:19]} {[%emt 00:00:36]} Bf8 {[%clk 00:03:06]} {[%emt 00:00:30]} 31.
Rfd1 {[%clk 00:04:51]} {[%emt 00:00:38]} Rxb1 {[%clk 00:03:12]} {[%emt
00:00:04]} 32. Rxb1 {[%clk 00:04:34]} {[%emt 00:00:26]} Rb8 {[%clk 00:03:10]}
{[%emt 00:00:13]} 33. Bf1 {[%clk 00:03:48]} {[%emt 00:00:56]} Rxb1 {[%clk
00:03:17]} {[%emt 00:00:04]} 34. Qxb1 {[%clk 00:03:56]} {[%emt 00:00:02]} Qxc3
{[%clk 00:03:14]} {[%emt 00:00:13]} 35. Bxa6 {[%clk 00:04:02]} {[%emt
00:00:03]} Qxa5 {[%clk 00:03:16]} {[%emt 00:00:08]} 36. Bc4+ {[%clk 00:04:09]}
{[%emt 00:00:03]} Kg7 {[%clk 00:03:25]} {[%emt 00:00:02]} 37. Qb7 {[%clk
00:04:17]} {[%emt 00:00:02]} 1-0

[Event "Snabb-SM för veteraner, 50+ 2019"]
[Site "Schackcentrum, Vegagatan 20, Gothenburg, Sweden"]
[Date "2019.10.05"]
[Round "1.3"]
[White "Svenn, Gosta"]
[Black "Wesslen, Ulf"]
[Result "1-0"]
[TimeControl "15 minutes + 10 seconds per move from move one"]
[WhiteTitle "FM"]
[WhiteFideId "1700553"]
[BlackFideId "1705199"]
[WhiteElo "2272"]
[BlackElo "1971"]

1. d4 {[%clk 00:15:15]} {[%emt 00:00:04]} Nf6 {[%clk 00:15:06]} {[%emt
00:00:14]} 2. c4 {[%clk 00:15:21]} {[%emt 00:00:04]} g6 {[%clk 00:14:58]}
{[%emt 00:00:18]} 3. Nc3 {[%clk 00:15:28]} {[%emt 00:00:03]} d5 {[%clk
00:14:40]} {[%emt 00:00:28]} 4. cxd5 {[%clk 00:15:24]} {[%emt 00:00:15]} Nxd5
{[%clk 00:14:41]} {[%emt 00:00:08]} 5. e4 {[%clk 00:15:30]} {[%emt 00:00:03]}
Nxc3 {[%clk 00:14:45]} {[%emt 00:00:06]} 6. bxc3 {[%clk 00:15:39]} {[%emt
00:00:02]} Bg7 {[%clk 00:14:41]} {[%emt 00:00:13]} 7. Be3 {[%clk 00:15:34]}
{[%emt 00:00:16]} c5 {[%clk 00:14:11]} {[%emt 00:00:39]} 8. Rc1 {[%clk
00:15:16]} {[%emt 00:00:28]} Qa5 {[%clk 00:12:20]} {[%emt 00:02:01]} 9. Qd2
{[%clk 00:15:19]} {[%emt 00:00:08]} O-O {[%clk 00:12:12]} {[%emt 00:00:17]} 10.
Nf3 {[%clk 00:14:43]} {[%emt 00:00:45]} Rd8 {[%clk 00:10:28]} {[%emt 00:01:54]}
11. d5 {[%clk 00:12:26]} {[%emt 00:02:27]} Bg4 {[%clk 00:09:39]} {[%emt
00:00:59]} 12. Be2 {[%clk 00:12:04]} {[%emt 00:00:33]} Nd7 {[%clk 00:09:10]}
{[%emt 00:00:39]} 13. h3 {[%clk 00:10:52]} {[%emt 00:01:21]} Bxf3 {[%clk
00:08:53]} {[%emt 00:00:27]} 14. Bxf3 {[%clk 00:10:59]} {[%emt 00:00:03]} Rac8
{[%clk 00:08:36]} {[%emt 00:00:26]} 15. O-O {[%clk 00:10:21]} {[%emt 00:00:49]}
Qa4 {[%clk 00:07:23]} {[%emt 00:01:24]} 16. c4 {[%clk 00:09:27]} {[%emt
00:01:03]} Ne5 {[%clk 00:05:06]} {[%emt 00:02:27]} 17. Be2 {[%clk 00:09:28]}
{[%emt 00:00:09]} b5 {[%clk 00:04:21]} {[%emt 00:00:55]} 18. cxb5 {[%clk
00:06:55]} {[%emt 00:02:44]} Qxe4 {[%clk 00:04:02]} {[%emt 00:00:27]} 19. Rfd1
{[%clk 00:06:30]} {[%emt 00:00:35]} Nd7 {[%clk 00:02:57]} {[%emt 00:01:15]} 20.
Qa5 {[%clk 00:05:12]} {[%emt 00:01:27]} h6 {[%clk 00:02:15]} {[%emt 00:00:53]}
21. d6 {[%clk 00:03:02]} {[%emt 00:02:21]} exd6 {[%clk 00:02:17]} {[%emt
00:00:08]} 22. Rxd6 {[%clk 00:03:03]} {[%emt 00:00:08]} Be5 {[%clk 00:01:58]}
{[%emt 00:00:29]} 23. Rd2 {[%clk 00:02:34]} {[%emt 00:00:38]} Kg7 {[%clk
00:02:06]} {[%emt 00:00:03]} 24. Rcd1 {[%clk 00:02:27]} {[%emt 00:00:17]} Qb7
{[%clk 00:02:14]} {[%emt 00:00:02]} 25. Bf3 {[%clk 00:02:22]} {[%emt 00:00:14]}
Qc7 {[%clk 00:02:11]} {[%emt 00:00:14]} 26. Qxc7 {[%clk 00:02:23]} {[%emt
00:00:10]} Rxc7 {[%clk 00:02:20]} 27. Bc6 {[%clk 00:02:22]} {[%emt 00:00:10]}
Bd4 {[%clk 00:02:27]} {[%emt 00:00:03]} 28. Bxd4+ {[%clk 00:02:27]} {[%emt
00:00:05]} 1-0

[Event "Snabb-SM för veteraner, 50+ 2019"]
[Site "Schackcentrum, Vegagatan 20, Gothenburg, Sweden"]
[Date "2019.10.05"]
[Round "1.4"]
[White "Frisk, Hans"]
[Black "Svenn, Matti"]
[Result "1/2-1/2"]
[TimeControl "15 minutes + 10 seconds per move from move one"]
[WhiteFideId "1708570"]
[BlackFideId "1705091"]
[WhiteElo "1948"]
[BlackElo "2195"]

1. Nf3 {[%clk 00:15:16]} {[%emt 00:00:02]} Nf6 {[%clk 00:15:12]} {[%emt
00:00:08]} 2. c4 {[%clk 00:15:21]} {[%emt 00:00:06]} g6 {[%clk 00:15:19]}
{[%emt 00:00:03]} 3. e3 {[%clk 00:14:54]} {[%emt 00:00:37]} Bg7 {[%clk
00:15:27]} {[%emt 00:00:02]} 4. d4 {[%clk 00:15:02]} {[%emt 00:00:03]} c5
{[%clk 00:15:35]} {[%emt 00:00:02]} 5. Nc3 {[%clk 00:14:42]} {[%emt 00:00:30]}
O-O {[%clk 00:15:30]} {[%emt 00:00:14]} 6. Be2 {[%clk 00:14:47]} {[%emt
00:00:04]} cxd4 {[%clk 00:15:10]} {[%emt 00:00:32]} 7. Nxd4 {[%clk 00:14:13]}
{[%emt 00:00:44]} Nc6 {[%clk 00:15:13]} {[%emt 00:00:07]} 8. O-O {[%clk
00:13:41]} {[%emt 00:00:41]} d6 {[%clk 00:14:21]} {[%emt 00:01:02]} 9. b3
{[%clk 00:12:15]} {[%emt 00:01:37]} Bd7 {[%clk 00:13:44]} {[%emt 00:00:46]} 10.
Bb2 {[%clk 00:11:26]} {[%emt 00:00:58]} a6 {[%clk 00:13:50]} {[%emt 00:00:05]}
11. Qd2 {[%clk 00:09:57]} {[%emt 00:01:40]} Rb8 {[%clk 00:13:56]} {[%emt
00:00:04]} 12. Rfd1 {[%clk 00:09:17]} {[%emt 00:00:49]} b5 {[%clk 00:13:29]}
{[%emt 00:00:37]} 13. Nxc6 {[%clk 00:08:03]} {[%emt 00:01:24]} Bxc6 {[%clk
00:13:38]} {[%emt 00:00:02]} 14. Nd5 {[%clk 00:08:02]} {[%emt 00:00:11]} Ne4
{[%clk 00:10:14]} {[%emt 00:03:32]} 15. Qc2 {[%clk 00:07:47]} {[%emt 00:00:26]}
Bxb2 {[%clk 00:09:55]} {[%emt 00:00:28]} 16. Qxb2 {[%clk 00:07:56]} {[%emt
00:00:02]} bxc4 {[%clk 00:09:13]} {[%emt 00:00:52]} 17. Bxc4 {[%clk 00:07:29]}
{[%emt 00:00:37]} Bxd5 {[%clk 00:08:27]} {[%emt 00:00:56]} 18. Bxd5 {[%clk
00:06:54]} {[%emt 00:00:46]} Nf6 {[%clk 00:08:35]} 19. Bf3 {[%clk 00:06:41]}
{[%emt 00:00:23]} Qb6 {[%clk 00:08:37]} {[%emt 00:00:08]} 20. Qd4 {[%clk
00:06:11]} {[%emt 00:00:39]} a5 {[%clk 00:08:36]} {[%emt 00:00:12]} 21. Qxb6
{[%clk 00:05:55]} {[%emt 00:00:27]} Rxb6 {[%clk 00:08:44]} {[%emt 00:00:02]} 22.
Rac1 {[%clk 00:05:51]} {[%emt 00:00:14]} e6 {[%clk 00:06:57]} {[%emt 00:01:56]}
23. h4 {[%clk 00:04:16]} {[%emt 00:01:45]} d5 {[%clk 00:07:03]} {[%emt
00:00:04]} 24. Rc5 {[%clk 00:04:04]} {[%emt 00:00:22]} Ra8 {[%clk 00:07:12]}
{[%emt 00:00:01]} 25. Rdc1 {[%clk 00:03:52]} {[%emt 00:00:22]} Rbb8 {[%clk
00:06:59]} {[%emt 00:00:23]} 26. Rc7 {[%clk 00:03:50]} {[%emt 00:00:12]} Kg7
{[%clk 00:07:03]} {[%emt 00:00:06]} 27. g4 {[%clk 00:03:29]} {[%emt 00:00:31]}
Ne8 {[%clk 00:06:00]} {[%emt 00:01:13]} 28. R7c6 {[%clk 00:03:11]} {[%emt
00:00:28]} a4 {[%clk 00:05:58]} {[%emt 00:00:13]} 29. Bd1 {[%clk 00:03:06]}
{[%emt 00:00:14]} axb3 {[%clk 00:05:47]} {[%emt 00:00:21]} 30. Bxb3 {[%clk
00:03:04]} {[%emt 00:00:11]} Rb4 {[%clk 00:05:46]} {[%emt 00:00:12]} 31. f3
{[%clk 00:02:50]} {[%emt 00:00:25]} h5 {[%clk 00:05:10]} {[%emt 00:00:45]} 32.
gxh5 {[%clk 00:02:39]} {[%emt 00:00:20]} gxh5 {[%clk 00:05:20]} 33. f4 {[%clk
00:02:25]} {[%emt 00:00:25]} Nf6 {[%clk 00:05:25]} {[%emt 00:00:05]} 34. Kf2
{[%clk 00:02:05]} {[%emt 00:00:30]} d4 {[%clk 00:05:15]} {[%emt 00:00:20]} 35.
Rd1 {[%clk 00:01:08]} {[%emt 00:01:08]} Ng4+ {[%clk 00:05:22]} {[%emt
00:00:03]} 36. Kf3 {[%clk 00:01:10]} {[%emt 00:00:07]} Nxe3 {[%clk 00:05:16]}
{[%emt 00:00:15]} 37. Rg1+ {[%clk 00:01:08]} {[%emt 00:00:13]} Ng4 {[%clk
00:04:41]} {[%emt 00:00:45]} 38. f5 {[%clk 00:01:15]} {[%emt 00:00:03]} exf5
{[%clk 00:03:47]} {[%emt 00:01:04]} 39. Rc7 {[%clk 00:01:23]} {[%emt 00:00:02]}
Rf8 {[%clk 00:03:52]} {[%emt 00:00:05]} 40. Kf4 {[%clk 00:01:24]} {[%emt
00:00:09]} d3+ {[%clk 00:03:55]} {[%emt 00:00:08]} 41. Kxf5 {[%clk 00:01:26]}
{[%emt 00:00:08]} Rd4 {[%clk 00:03:53]} {[%emt 00:00:11]} 42. Kg5 {[%clk
00:01:22]} {[%emt 00:00:14]} Nf6 {[%clk 00:02:32]} {[%emt 00:01:31]} 43. Rc6
{[%clk 00:01:00]} {[%emt 00:00:32]} Rg4+ {[%clk 00:02:20]} {[%emt 00:00:23]} 44.
Rxg4 {[%clk 00:01:03]} {[%emt 00:00:06]} Nxg4 {[%clk 00:02:25]} {[%emt
00:00:04]} 45. Kxh5 {[%clk 00:01:06]} {[%emt 00:00:07]} Nf2 {[%clk 00:02:34]}
{[%emt 00:00:02]} 46. Rd6 {[%clk 00:01:03]} {[%emt 00:00:13]} Ra8 {[%clk
00:02:38]} {[%emt 00:00:06]} 47. Rd7 {[%clk 00:01:04]} {[%emt 00:00:09]} Ra5+
{[%clk 00:02:46]} {[%emt 00:00:02]} 48. Rd5 {[%clk 00:01:04]} {[%emt 00:00:10]}
Rxd5+ {[%clk 00:02:54]} {[%emt 00:00:02]} 49. Bxd5 {[%clk 00:01:13]} d2 {[%clk
00:03:04]} 50. Bb3 {[%clk 00:01:06]} {[%emt 00:00:17]} d1=Q+ {[%clk 00:03:05]}
{[%emt 00:00:08]} 51. Bxd1 {[%clk 00:01:15]} Nxd1 {[%clk 00:03:15]} {[%emt
00:00:01]} 52. Kg5 {[%clk 00:01:19]} {[%emt 00:00:06]} Nc3 {[%clk 00:03:23]}
{[%emt 00:00:01]} 53. a3 {[%clk 00:01:25]} {[%emt 00:00:04]} Na4 {[%clk
00:01:55]} {[%emt 00:01:38]} 54. Kf5 {[%clk 00:01:22]} {[%emt 00:00:12]} Nc5
{[%clk 00:02:03]} {[%emt 00:00:03]} 55. h5 {[%clk 00:01:08]} {[%emt 00:00:23]}
Na4 {[%clk 00:02:11]} {[%emt 00:00:03]} 56. Kg5 {[%clk 00:01:10]} {[%emt
00:00:08]} Nc5 {[%clk 00:02:10]} {[%emt 00:00:11]} 57. Kf5 {[%clk 00:01:19]}
1/2-1/2

[Event "Snabb-SM för veteraner, 50+ 2019"]
[Site "Schackcentrum, Vegagatan 20, Gothenburg, Sweden"]
[Date "2019.10.05"]
[Round "1.5"]
[White "Madebrink, Lars"]
[Black "Ansner, Bjorn"]
[Result "1-0"]
[TimeControl "15 minutes + 10 seconds per move from move one"]
[WhiteFideId "1701347"]
[BlackFideId "1702769"]
[WhiteElo "2179"]
[BlackElo "1934"]

1. Nf3 {[%clk 00:15:17]} {[%emt 00:00:02]} d5 {[%emt 00:00:06]} 2. d4 g6 {[%clk
00:15:17]} {[%emt 00:00:07]} 3. c4 {[%clk 00:15:35]} {[%emt 00:00:02]} Nf6
{[%clk 00:15:23]} {[%emt 00:00:03]} 4. cxd5 {[%clk 00:15:38]} {[%emt 00:00:07]}
Nxd5 {[%clk 00:15:27]} {[%emt 00:00:05]} 5. e4 {[%clk 00:15:47]} Nb6 {[%clk
00:15:35]} {[%emt 00:00:04]} 6. Nc3 {[%clk 00:15:50]} {[%emt 00:00:08]} Bg7
{[%clk 00:15:39]} {[%emt 00:00:05]} 7. h3 {[%clk 00:15:44]} {[%emt 00:00:16]}
O-O {[%clk 00:15:43]} {[%emt 00:00:06]} 8. Be2 {[%clk 00:15:53]} {[%emt
00:00:02]} Nc6 {[%clk 00:14:36]} {[%emt 00:01:16]} 9. Be3 {[%clk 00:15:57]}
{[%emt 00:00:06]} a6 {[%clk 00:14:40]} {[%emt 00:00:06]} 10. O-O {[%clk
00:16:02]} {[%emt 00:00:05]} Na5 {[%clk 00:13:55]} {[%emt 00:00:55]} 11. b3
{[%clk 00:15:17]} {[%emt 00:00:55]} Nc6 {[%clk 00:10:40]} {[%emt 00:03:26]} 12.
Rc1 {[%clk 00:15:22]} {[%emt 00:00:05]} a5 {[%clk 00:10:40]} {[%emt 00:00:10]}
13. Nb5 {[%clk 00:15:00]} {[%emt 00:00:32]} e6 {[%clk 00:10:12]} {[%emt
00:00:38]} 14. Bf4 {[%clk 00:14:26]} {[%emt 00:00:44]} Nxd4 {[%clk 00:07:50]}
{[%emt 00:02:32]} 15. Nbxd4 {[%clk 00:13:59]} {[%emt 00:00:37]} Bxd4 {[%clk
00:07:33]} {[%emt 00:00:27]} 16. Qxd4 {[%clk 00:13:55]} {[%emt 00:00:13]} Qxd4
{[%clk 00:07:38]} {[%emt 00:00:06]} 17. Nxd4 {[%clk 00:14:04]} {[%emt
00:00:02]} 1-0

[Event "Snabb-SM för veteraner, 50+ 2019"]
[Site "Schackcentrum, Vegagatan 20, Gothenburg, Sweden"]
[Date "2019.10.05"]
[Round "1.6"]
[White "Kirppo, Ronny"]
[Black "Holst, Conny"]
[Result "1/2-1/2"]
[TimeControl "15 minutes + 10 seconds per move from move one"]
[WhiteFideId "1724681"]
[BlackFideId "1701428"]
[WhiteElo "1877"]
[BlackElo "2166"]

1. e4 {[%clk 00:15:16]} {[%emt 00:00:03]} e5 {[%clk 00:15:17]} {[%emt
00:00:04]} 2. Nf3 {[%clk 00:15:23]} {[%emt 00:00:03]} Nc6 {[%clk 00:15:19]}
{[%emt 00:00:08]} 3. Nc3 {[%clk 00:15:19]} {[%emt 00:00:14]} Nf6 {[%clk
00:15:10]} {[%emt 00:00:19]} 4. Bb5 {[%clk 00:14:33]} {[%emt 00:00:56]} Bb4
{[%clk 00:14:48]} {[%emt 00:00:32]} 5. O-O {[%clk 00:14:09]} {[%emt 00:00:34]}
O-O {[%clk 00:14:50]} {[%emt 00:00:08]} 6. d3 {[%clk 00:14:15]} {[%emt
00:00:04]} d6 {[%clk 00:14:15]} {[%emt 00:00:44]} 7. Bg5 {[%clk 00:13:47]}
{[%emt 00:00:39]} Bxc3 {[%clk 00:13:16]} {[%emt 00:01:09]} 8. bxc3 {[%clk
00:13:54]} {[%emt 00:00:03]} Qe7 {[%clk 00:12:42]} {[%emt 00:00:44]} 9. Re1
{[%clk 00:12:34]} {[%emt 00:01:30]} Nd8 {[%clk 00:12:13]} {[%emt 00:00:39]} 10.
Bc4 {[%clk 00:11:23]} {[%emt 00:01:21]} Ne6 {[%clk 00:11:11]} {[%emt 00:01:12]}
1/2-1/2

[Event "Snabb-SM för veteraner, 50+ 2019"]
[Site "Schackcentrum, Vegagatan 20, Gothenburg, Sweden"]
[Date "2019.10.05"]
[Round "1.7"]
[White "Svensson, Sven"]
[Black "Andersson, Kjell-Ake"]
[Result "1-0"]
[TimeControl "15 minutes + 10 seconds per move from move one"]
[WhiteFideId "1709240"]
[BlackFideId "1713825"]
[WhiteElo "2158"]
[BlackElo "1854"]

1. d4 {[%clk 00:15:17]} {[%emt 00:00:02]} Nf6 {[%clk 00:14:56]} {[%emt
00:00:23]} 2. c4 {[%clk 00:15:24]} {[%emt 00:00:03]} e6 {[%clk 00:14:53]}
{[%emt 00:00:14]} 3. Nc3 {[%clk 00:15:31]} {[%emt 00:00:03]} Bb4 {[%clk
00:15:00]} {[%emt 00:00:03]} 4. Qc2 {[%clk 00:15:39]} {[%emt 00:00:02]} Nc6
{[%clk 00:15:03]} {[%emt 00:00:07]} 5. Nf3 {[%clk 00:15:41]} {[%emt 00:00:08]}
O-O {[%clk 00:15:07]} {[%emt 00:00:05]} 6. Bg5 {[%clk 00:15:26]} {[%emt
00:00:25]} d6 {[%clk 00:14:39]} {[%emt 00:00:39]} 7. e3 {[%clk 00:15:19]}
{[%emt 00:00:17]} e5 {[%clk 00:13:39]} {[%emt 00:01:10]} 8. d5 {[%clk
00:14:00]} {[%emt 00:01:30]} Nb8 {[%clk 00:13:46]} {[%emt 00:00:03]} 9. Be2
{[%clk 00:13:51]} {[%emt 00:00:18]} Bg4 {[%clk 00:13:48]} {[%emt 00:00:08]} 10.
O-O {[%clk 00:10:49]} {[%emt 00:03:12]} Bxc3 {[%clk 00:13:39]} {[%emt
00:00:19]} 11. Bxf6 {[%clk 00:10:41]} {[%emt 00:00:18]} Qxf6 {[%clk 00:13:33]}
{[%emt 00:00:16]} 12. Qxc3 {[%clk 00:10:48]} {[%emt 00:00:03]} Nd7 {[%clk
00:13:05]} {[%emt 00:00:36]} 13. b4 {[%clk 00:07:57]} {[%emt 00:03:03]} b6
{[%clk 00:12:10]} {[%emt 00:01:05]} 14. h3 {[%clk 00:07:47]} {[%emt 00:00:19]}
Bxf3 {[%clk 00:10:37]} {[%emt 00:01:44]} 15. Bxf3 {[%clk 00:07:42]} {[%emt
00:00:15]} e4 {[%clk 00:10:43]} {[%emt 00:00:04]} 16. Qxf6 {[%clk 00:07:40]}
{[%emt 00:00:12]} Nxf6 {[%clk 00:10:51]} {[%emt 00:00:02]} 17. Be2 {[%clk
00:07:39]} {[%emt 00:00:11]} Nd7 {[%clk 00:10:55]} {[%emt 00:00:06]} 18. Rfc1
{[%clk 00:07:04]} {[%emt 00:00:45]} f5 {[%clk 00:09:41]} {[%emt 00:01:24]} 19.
c5 {[%clk 00:05:54]} {[%emt 00:01:20]} bxc5 {[%clk 00:09:04]} {[%emt 00:00:48]}
20. Bb5 {[%clk 00:06:02]} {[%emt 00:00:02]} Ne5 {[%clk 00:08:39]} {[%emt
00:00:34]} 21. bxc5 {[%clk 00:05:57]} {[%emt 00:00:15]} Nd3 {[%clk 00:07:55]}
{[%emt 00:00:55]} 22. Bxd3 {[%clk 00:04:25]} {[%emt 00:01:41]} exd3 {[%clk
00:08:03]} {[%emt 00:00:02]} 23. cxd6 {[%clk 00:03:21]} {[%emt 00:01:15]} cxd6
{[%clk 00:08:04]} {[%emt 00:00:08]} 24. Rc3 {[%clk 00:02:48]} {[%emt 00:00:43]}
Rfc8 {[%clk 00:07:55]} {[%emt 00:00:20]} 25. Rxd3 {[%clk 00:02:56]} {[%emt
00:00:01]} Rc2 {[%clk 00:07:53]} {[%emt 00:00:11]} 26. Ra3 {[%clk 00:03:05]}
{[%emt 00:00:02]} Rb8 {[%clk 00:06:39]} {[%emt 00:01:25]} 27. Rxa7 {[%clk
00:03:03]} {[%emt 00:00:12]} Rbb2 {[%clk 00:06:47]} {[%emt 00:00:01]} 28. Rf1
{[%clk 00:03:11]} {[%emt 00:00:03]} Rxa2 {[%clk 00:06:51]} {[%emt 00:00:06]} 29.
Rd7 {[%clk 00:03:03]} {[%emt 00:00:18]} Rd2 {[%clk 00:05:50]} {[%emt 00:01:11]}
30. Rb1 {[%clk 00:02:07]} {[%emt 00:01:05]} Rdb2 {[%clk 00:05:12]} {[%emt
00:00:48]} 31. Rxb2 {[%emt 00:00:06]} Rxb2 {[%clk 00:05:20]} 32. Rxd6 {[%clk
00:02:21]} {[%emt 00:00:01]} Kf7 {[%clk 00:05:28]} {[%emt 00:00:01]} 33. f3
{[%clk 00:01:49]} {[%emt 00:00:43]} Re2 {[%clk 00:04:56]} {[%emt 00:00:42]} 34.
Re6 {[%clk 00:01:55]} {[%emt 00:00:03]} Rd2 {[%clk 00:04:44]} {[%emt 00:00:23]}
35. e4 {[%clk 00:01:58]} {[%emt 00:00:07]} f4 {[%clk 00:04:21]} {[%emt
00:00:32]} 36. h4 {[%clk 00:02:07]} {[%emt 00:00:02]} h5 {[%clk 00:04:09]}
{[%emt 00:00:22]} 37. Kh2 {[%clk 00:02:03]} {[%emt 00:00:14]} g6 {[%clk
00:04:11]} {[%emt 00:00:09]} 38. Kh3 {[%clk 00:02:10]} {[%emt 00:00:02]} Rd1
{[%clk 00:03:58]} {[%emt 00:00:23]} 39. Kh2 {[%clk 00:02:09]} {[%emt 00:00:12]}
Rd2 {[%clk 00:04:07]} {[%emt 00:00:01]} 40. Ra6 {[%clk 00:02:17]} Rd1 {[%clk
00:04:09]} {[%emt 00:00:08]} 41. Ra2 {[%clk 00:02:25]} {[%emt 00:00:03]} Rd3
{[%clk 00:04:11]} {[%emt 00:00:07]} 42. Kg1 {[%clk 00:02:33]} {[%emt 00:00:02]}
Rd1+ {[%clk 00:04:20]} {[%emt 00:00:02]} 43. Kf2 {[%clk 00:02:42]} Kf6 {[%clk
00:04:07]} {[%emt 00:00:22]} 44. g3 {[%clk 00:02:50]} {[%emt 00:00:02]} fxg3+
{[%clk 00:03:24]} {[%emt 00:00:54]} 45. Kxg3 {[%clk 00:02:58]} {[%emt
00:00:01]} Ke5 {[%clk 00:03:23]} {[%emt 00:00:11]} 46. Ra6 {[%clk 00:03:05]}
{[%emt 00:00:03]} Rg1+ {[%clk 00:03:20]} {[%emt 00:00:13]} 47. Kf2 {[%clk
00:03:13]} {[%emt 00:00:02]} Rh1 {[%clk 00:03:17]} {[%emt 00:00:13]} 48. Re6+
{[%clk 00:03:11]} {[%emt 00:00:13]} Kf4 {[%clk 00:03:09]} {[%emt 00:00:17]} 49.
Rf6+ {[%clk 00:02:45]} {[%emt 00:00:35]} Ke5 {[%clk 00:03:14]} {[%emt
00:00:06]} 50. Rxg6 {[%clk 00:02:54]} {[%emt 00:00:01]} Rxh4 {[%clk 00:03:12]}
{[%emt 00:00:12]} 51. d6 {[%clk 00:02:04]} {[%emt 00:01:01]} Rf4 {[%clk
00:02:13]} {[%emt 00:01:08]} 52. d7 {[%clk 00:02:13]} {[%emt 00:00:02]} Rf8
{[%emt 00:00:01]} 53. Ke3 {[%clk 00:02:21]} {[%emt 00:00:02]} Rh8 {[%emt
00:00:34]} 1-0